[Event "Titled Tuesday Blitz October 25 Late 2022"]
[White "Bordi, Kevin"]
[Black "Andreikin, Dmitry"]
[WhiteFideId "621862"]
[BlackFideId "4158814"]
[WhiteElo "2827"]
[BlackElo "2736"]
[Result "1-0"]
[Round "08"]
[TimeControl "180+1"]
[Date "2022.10.26"]
[WhiteClock "0:00:13"]
[BlackClock "0:00:05"]

1. e4 {[%clk 0:03:00]}  c5 {[%clk 0:02:57]} 2. Nf3 {[%clk 0:03:01]}  Nc6 {[%clk 0:02:58]} 3. Bc4 {[%clk 0:03:00]}  e6 {[%clk 0:02:56]} 4. O-O {[%clk 0:03:00]}  Nf6 {[%clk 0:02:52]} 5. Re1 {[%clk 0:03:00]}  Nxe4 {[%clk 0:02:45]} 6. Rxe4 {[%clk 0:03:01]}  d5 {[%clk 0:02:45]} 7. Bxd5 {[%clk 0:03:02]}  Qxd5 {[%clk 0:02:46]} 8. Nc3 {[%clk 0:03:03]}  Qd7 {[%clk 0:02:45]} 9. d4 {[%clk 0:03:03]}  cxd4 {[%clk 0:02:41]} 10. Nxd4 {[%clk 0:03:04]}  Be7 {[%clk 0:02:28]} 11. Qg4 {[%clk 0:03:04]}  Bf6 {[%clk 0:02:11]} 12. Nxc6 {[%clk 0:02:24]}  Qxc6 {[%clk 0:02:10]} 13. Bg5 {[%clk 0:02:19]}  Bxc3 {[%clk 0:01:50]} 14. bxc3 {[%clk 0:02:18]}  b6 {[%clk 0:01:20]} 15. Rd1 {[%clk 0:01:58]}  Bb7 {[%clk 0:01:16]} 16. f3 {[%clk 0:01:30]}  h5 {[%clk 0:00:42]} 17. Qg3 {[%clk 0:01:00]}  Qxc3 {[%clk 0:00:30]} 18. Red4 {[%clk 0:00:53]}  Bd5 {[%clk 0:00:29]} 19. Qd6 {[%clk 0:00:44]}  Qc5 {[%clk 0:00:27]} 20. Qe5 {[%clk 0:00:34]}  f6 {[%clk 0:00:20]} 21. Bxf6 {[%clk 0:00:33]}  gxf6 {[%clk 0:00:20]} 22. Qxf6 {[%clk 0:00:33]}  Rf8 {[%clk 0:00:15]} 23. Qg6+ {[%clk 0:00:32]}  Ke7 {[%clk 0:00:07]} 24. Qg5+ {[%clk 0:00:27]}  Kd7 {[%clk 0:00:04]} 25. c4 {[%clk 0:00:25]}  Rg8 {[%clk 0:00:04]} 26. Qxh5 {[%clk 0:00:19]}  Kc8 {[%clk 0:00:02]} 27. cxd5 {[%clk 0:00:17]}  Kb7 {[%clk 0:00:03]} 28. Qf7+ {[%clk 0:00:16]}  Ka6 {[%clk 0:00:03]} 29. Qxe6 {[%clk 0:00:13]}  Rae8 {[%clk 0:00:04]} 30. Qc6 {[%clk 0:00:14]}  Re2 {[%clk 0:00:04]} 31. g3 {[%clk 0:00:08]}  Rh8 {[%clk 0:00:03]} 32. Qxc5 {[%clk 0:00:08]}  bxc5 {[%clk 0:00:04]} 33. R4d2 {[%clk 0:00:08]}  Rhxh2 {[%clk 0:00:03]} 34. Rxe2 {[%clk 0:00:09]}  Rxe2 {[%clk 0:00:04]} 35. d6 {[%clk 0:00:09]}  Re8 {[%clk 0:00:04]} 36. d7 {[%clk 0:00:10]}  Rd8 {[%clk 0:00:05]} 37. g4 {[%clk 0:00:11]}  c4 {[%clk 0:00:05]} 38. g5 {[%clk 0:00:11]}  Kb5 {[%clk 0:00:04]} 39. f4 {[%clk 0:00:11]}  c3 {[%clk 0:00:05]} 40. f5 {[%clk 0:00:11]}  Kc4 {[%clk 0:00:05]} 41. f6 {[%clk 0:00:11]}  c2 {[%clk 0:00:05]} 42. Rc1 {[%clk 0:00:12]}  Kd3 {[%clk 0:00:06]} 43. g6 {[%clk 0:00:12]}  Rxd7 {[%clk 0:00:05]} 44. g7 {[%clk 0:00:13]}  Kc3 {[%clk 0:00:05]} 45. Rxc2+ {[%clk 0:00:12]}  Kxc2 {[%clk 0:00:05]} 46. g8=Q {[%clk 0:00:13]} 1-0


[Site "https://www.chess.com"]

[Event "Titled Tuesday Blitz October 25 Late 2022"]
[White "Culum, Sanjin"]
[Black "Schuster, Karsten"]
[WhiteFideId "14420937"]
[BlackFideId "4611071"]
[WhiteElo "2180"]
[BlackElo "2294"]
[Result "1-0"]
[Round "08"]
[TimeControl "180+1"]
[Date "2022.10.26"]
[WhiteClock "0:01:01"]
[BlackClock "0:00:37"]

1. Nf3 {[%clk 0:03:00]}  d5 {[%clk 0:02:59]} 2. b3 {[%clk 0:03:01]}  Nf6 {[%clk 0:02:59]} 3. Bb2 {[%clk 0:02:58]}  c6 {[%clk 0:02:59]} 4. e3 {[%clk 0:02:58]}  Bg4 {[%clk 0:02:59]} 5. d4 {[%clk 0:02:59]}  e6 {[%clk 0:02:58]} 6. h3 {[%clk 0:02:59]}  Bh5 {[%clk 0:02:58]} 7. Bd3 {[%clk 0:02:59]}  Nbd7 {[%clk 0:02:58]} 8. Nbd2 {[%clk 0:03:00]}  Be7 {[%clk 0:02:57]} 9. c4 {[%clk 0:03:01]}  a5 {[%clk 0:02:54]} 10. a3 {[%clk 0:03:00]}  O-O {[%clk 0:02:54]} 11. Qc2 {[%clk 0:03:00]}  Bg6 {[%clk 0:02:54]} 12. Bxg6 {[%clk 0:02:56]}  hxg6 {[%clk 0:02:55]} 13. O-O {[%clk 0:02:56]}  b5 {[%clk 0:02:48]} 14. c5 {[%clk 0:02:54]}  a4 {[%clk 0:02:48]} 15. b4 {[%clk 0:02:54]}  Re8 {[%clk 0:02:46]} 16. e4 {[%clk 0:02:54]}  dxe4 {[%clk 0:02:46]} 17. Nxe4 {[%clk 0:02:54]}  Nxe4 {[%clk 0:02:46]} 18. Qxe4 {[%clk 0:02:55]}  Nf6 {[%clk 0:02:46]} 19. Qxc6 {[%clk 0:02:51]}  Qb8 {[%clk 0:02:37]} 20. Ne5 {[%clk 0:02:30]}  Rd8 {[%clk 0:02:37]} 21. Qf3 {[%clk 0:02:16]}  Rd5 {[%clk 0:02:31]} 22. g4 {[%clk 0:02:11]}  Qe8 {[%clk 0:02:18]} 23. g5 {[%clk 0:02:08]}  Nd7 {[%clk 0:02:13]} 24. h4 {[%clk 0:02:08]}  Rc8 {[%clk 0:02:02]} 25. Nd3 {[%clk 0:02:04]}  Rf5 {[%clk 0:01:52]} 26. Qg2 {[%clk 0:02:01]}  Qd8 {[%clk 0:01:46]} 27. f4 {[%clk 0:01:55]}  Nb8 {[%clk 0:01:45]} 28. Ne5 {[%clk 0:01:52]}  Qe8 {[%clk 0:01:26]} 29. d5 {[%clk 0:01:48]}  exd5 {[%clk 0:01:21]} 30. Qxd5 {[%clk 0:01:48]}  Rd8 {[%clk 0:01:20]} 31. Qg2 {[%clk 0:01:42]}  f6 {[%clk 0:01:04]} 32. Ng4 {[%clk 0:01:30]}  Rd3 {[%clk 0:00:54]} 33. gxf6 {[%clk 0:01:27]}  gxf6 {[%clk 0:00:50]} 34. Nh6+ {[%clk 0:01:27]}  Kh7 {[%clk 0:00:47]} 35. Nxf5 {[%clk 0:01:27]}  gxf5 {[%clk 0:00:47]} 36. Rae1 {[%clk 0:01:23]}  Qf8 {[%clk 0:00:40]} 37. Qe2 {[%clk 0:01:14]}  Rg3+ {[%clk 0:00:38]} 38. Kh1 {[%clk 0:01:12]}  Rh3+ {[%clk 0:00:37]} 39. Kg2 {[%clk 0:01:11]}  Rxh4 {[%clk 0:00:37]} 40. Qxe7+ {[%clk 0:01:01]} 1-0


[Site "https://www.chess.com"]

[Event "Titled Tuesday Blitz October 25 Late 2022"]
[White "D`Arruda, Ricardo D."]
[Black "Aghasiyev, Kamal"]
[WhiteFideId "100692"]
[BlackFideId "13402854"]
[WhiteElo "2460"]
[BlackElo "2341"]
[Result "1/2-1/2"]
[Round "08"]
[TimeControl "180+1"]
[Date "2022.10.26"]
[WhiteClock "0:00:08"]
[BlackClock "0:00:04"]

1. d4 {[%clk 0:03:00]}  d5 {[%clk 0:02:53]} 2. Nf3 {[%clk 0:03:00]}  Nf6 {[%clk 0:02:50]} 3. c4 {[%clk 0:02:59]}  e6 {[%clk 0:02:50]} 4. Nc3 {[%clk 0:02:59]}  Be7 {[%clk 0:02:50]} 5. Bf4 {[%clk 0:02:59]}  O-O {[%clk 0:02:49]} 6. e3 {[%clk 0:02:59]}  b6 {[%clk 0:02:49]} 7. cxd5 {[%clk 0:02:58]}  Nxd5 {[%clk 0:02:49]} 8. Nxd5 {[%clk 0:02:56]}  Qxd5 {[%clk 0:02:49]} 9. a3 {[%clk 0:02:51]}  Ba6 {[%clk 0:02:43]} 10. Bxa6 {[%clk 0:02:51]}  Nxa6 {[%clk 0:02:39]} 11. O-O {[%clk 0:02:47]}  c5 {[%clk 0:02:39]} 12. Qe2 {[%clk 0:02:46]}  Qb7 {[%clk 0:02:36]} 13. Rac1 {[%clk 0:02:28]}  Rac8 {[%clk 0:02:34]} 14. h3 {[%clk 0:02:26]}  cxd4 {[%clk 0:02:24]} 15. Nxd4 {[%clk 0:02:25]}  Nc5 {[%clk 0:02:21]} 16. f3 {[%clk 0:02:11]}  Rfd8 {[%clk 0:02:07]} 17. Rfd1 {[%clk 0:02:10]}  a6 {[%clk 0:01:20]} 18. e4 {[%clk 0:02:08]}  b5 {[%clk 0:01:09]} 19. Be3 {[%clk 0:02:06]}  Na4 {[%clk 0:01:08]} 20. Rxc8 {[%clk 0:01:44]}  Rxc8 {[%clk 0:01:04]} 21. Rc1 {[%clk 0:01:29]}  Rxc1+ {[%clk 0:01:01]} 22. Bxc1 {[%clk 0:01:30]}  Bc5 {[%clk 0:01:01]} 23. Be3 {[%clk 0:01:28]}  Qb6 {[%clk 0:01:01]} 24. Qd2 {[%clk 0:01:18]}  e5 {[%clk 0:00:55]} 25. Nf5 {[%clk 0:00:49]}  g6 {[%clk 0:00:46]} 26. Bxc5 {[%clk 0:00:26]}  Qxc5+ {[%clk 0:00:44]} 27. Ne3 {[%clk 0:00:27]}  Nxb2 {[%clk 0:00:41]} 28. Kh2 {[%clk 0:00:26]}  Qd4 {[%clk 0:00:37]} 29. Qc1 {[%clk 0:00:22]}  Nd3 {[%clk 0:00:31]} 30. Qc8+ {[%clk 0:00:20]}  Kg7 {[%clk 0:00:32]} 31. Nd5 {[%clk 0:00:19]}  Nf4 {[%clk 0:00:14]} 32. Nxf4 {[%clk 0:00:10]}  exf4 {[%clk 0:00:14]} 33. Qxa6 {[%clk 0:00:10]}  Qa4 {[%clk 0:00:09]} 34. Qd6 {[%clk 0:00:09]}  h6 {[%clk 0:00:06]} 35. Qe5+ {[%clk 0:00:08]}  Kg8 {[%clk 0:00:05]} 36. Qe8+ {[%clk 0:00:08]}  Kg7 {[%clk 0:00:05]} 37. Qe5+ {[%clk 0:00:09]}  Kg8 {[%clk 0:00:03]} 38. Qe8+ {[%clk 0:00:08]}  Kg7 {[%clk 0:00:04]} 39. Qe5+ {[%clk 0:00:08]} 1/2-1/2


[Site "https://www.chess.com"]

[Event "Titled Tuesday Blitz October 25 Late 2022"]
[White "Danielyan, Vahe"]
[Black "Goncalves, Davi Sulzbacher"]
[WhiteFideId "13304828"]
[BlackFideId "2154510"]
[WhiteElo "2421"]
[BlackElo "2182"]
[Result "0-1"]
[Round "08"]
[TimeControl "180+1"]
[Date "2022.10.26"]
[WhiteClock "0:02:29"]
[BlackClock "0:01:09"]

1. e4 {[%clk 0:03:00]}  c5 {[%clk 0:02:59]} 2. Nc3 {[%clk 0:03:00]}  Nc6 {[%clk 0:02:59]} 3. Bb5 {[%clk 0:02:59]}  g6 {[%clk 0:02:58]} 4. Bxc6 {[%clk 0:02:59]}  dxc6 {[%clk 0:02:56]} 5. d3 {[%clk 0:03:00]}  Bg7 {[%clk 0:02:56]} 6. Nge2 {[%clk 0:03:00]}  e5 {[%clk 0:02:56]} 7. Be3 {[%clk 0:03:01]}  b6 {[%clk 0:02:54]} 8. Qd2 {[%clk 0:03:01]}  Nf6 {[%clk 0:02:50]} 9. Bh6 {[%clk 0:03:01]}  O-O {[%clk 0:02:50]} 10. Bxg7 {[%clk 0:03:01]}  Kxg7 {[%clk 0:02:50]} 11. O-O {[%clk 0:03:01]}  c4 {[%clk 0:02:44]} 12. f4 {[%clk 0:03:01]}  cxd3 {[%clk 0:02:41]} 13. fxe5 {[%clk 0:03:01]}  Nxe4 {[%clk 0:02:19]} 14. Nxe4 {[%clk 0:02:57]}  dxe2 {[%clk 0:02:19]} 15. Qxe2 {[%clk 0:02:51]}  Qd4+ {[%clk 0:02:19]} 16. Qf2 {[%clk 0:02:45]}  Qxe4 {[%clk 0:02:12]} 17. Qf6+ {[%clk 0:02:39]}  Kg8 {[%clk 0:02:12]} 18. Rae1 {[%clk 0:02:40]}  Qd4+ {[%clk 0:02:10]} 19. Kh1 {[%clk 0:02:40]}  Be6 {[%clk 0:02:04]} 20. Rf4 {[%clk 0:02:40]}  Qd2 {[%clk 0:02:01]} 21. Ref1 {[%clk 0:02:39]}  Rad8 {[%clk 0:01:56]} 22. h3 {[%clk 0:02:39]}  Qe2 {[%clk 0:01:47]} 23. R1f2 {[%clk 0:02:38]}  Qe1+ {[%clk 0:01:41]} 24. Kh2 {[%clk 0:02:39]}  Rd2 {[%clk 0:01:24]} 25. Rf1 {[%clk 0:02:36]}  Qe2 {[%clk 0:01:20]} 26. R1f2 {[%clk 0:02:37]}  Qe3 {[%clk 0:01:19]} 27. R4f3 {[%clk 0:02:35]}  Rxf2 {[%clk 0:01:17]} 28. Rxf2 {[%clk 0:02:32]}  Qd4 {[%clk 0:01:11]} 29. Rf4 {[%clk 0:02:31]}  Qd8 {[%clk 0:01:10]} 30. Rd4 {[%clk 0:02:29]}  Qxd4 {[%clk 0:01:09]} 0-1


[Site "https://www.chess.com"]

[Event "Titled Tuesday Blitz October 25 Late 2022"]
[White "Dzierzak, Radoslaw"]
[Black "Djordjevic, Dejan N"]
[WhiteFideId "1161407"]
[BlackFideId "913316"]
[WhiteElo "2111"]
[BlackElo "2262"]
[Result "1-0"]
[Round "08"]
[TimeControl "180+1"]
[Date "2022.10.26"]
[WhiteClock "0:00:37"]
[BlackClock "0:01:13"]

1. e4 {[%clk 0:03:00]}  c5 {[%clk 0:02:59]} 2. Nf3 {[%clk 0:03:01]}  Nc6 {[%clk 0:02:59]} 3. d4 {[%clk 0:03:01]}  cxd4 {[%clk 0:02:58]} 4. Nxd4 {[%clk 0:03:02]}  Nf6 {[%clk 0:02:58]} 5. Nc3 {[%clk 0:03:02]}  Qb6 {[%clk 0:02:58]} 6. Nb3 {[%clk 0:03:01]}  e6 {[%clk 0:02:57]} 7. Be3 {[%clk 0:02:57]}  Qc7 {[%clk 0:02:57]} 8. g3 {[%clk 0:02:52]}  a6 {[%clk 0:02:57]} 9. Bg2 {[%clk 0:02:52]}  b5 {[%clk 0:02:57]} 10. O-O {[%clk 0:02:44]}  Be7 {[%clk 0:02:55]} 11. f4 {[%clk 0:02:43]}  d6 {[%clk 0:02:55]} 12. e5 {[%clk 0:02:00]}  Nd7 {[%clk 0:02:44]} 13. exd6 {[%clk 0:01:53]}  Bxd6 {[%clk 0:02:43]} 14. f5 {[%clk 0:01:45]}  Nde5 {[%clk 0:02:31]} 15. Ne4 {[%clk 0:01:33]}  Be7 {[%clk 0:02:25]} 16. f6 {[%clk 0:01:33]}  gxf6 {[%clk 0:02:25]} 17. Nxf6+ {[%clk 0:01:33]}  Bxf6 {[%clk 0:02:24]} 18. Rxf6 {[%clk 0:01:34]}  h5 {[%clk 0:02:12]} 19. Bc5 {[%clk 0:01:00]}  Ng4 {[%clk 0:02:00]} 20. Rf1 {[%clk 0:00:59]}  Bb7 {[%clk 0:01:50]} 21. h3 {[%clk 0:00:49]}  Qxg3 {[%clk 0:01:36]} 22. hxg4 {[%clk 0:00:41]}  hxg4 {[%clk 0:01:31]} 23. Qd6 {[%clk 0:00:41]}  Qxd6 {[%clk 0:01:18]} 24. Bxd6 {[%clk 0:00:42]}  Rd8 {[%clk 0:01:17]} 25. Rad1 {[%clk 0:00:38]}  f5 {[%clk 0:01:15]} 26. Nc5 {[%clk 0:00:37]}  Ba8 {[%clk 0:01:13]} 27. Nxe6 {[%clk 0:00:37]} 1-0


[Site "https://www.chess.com"]

[Event "Titled Tuesday Blitz October 25 Late 2022"]
[White "Garayev, Kanan"]
[Black "Bilan, Danila"]
[WhiteFideId "13406671"]
[BlackFideId "24161918"]
[WhiteElo "2244"]
[BlackElo "2203"]
[Result "1-0"]
[Round "08"]
[TimeControl "180+1"]
[Date "2022.10.26"]
[WhiteClock "0:01:06"]
[BlackClock "0:00:03"]

1. e4 {[%clk 0:02:55]}  c6 {[%clk 0:02:59]} 2. d4 {[%clk 0:02:54]}  d5 {[%clk 0:03:00]} 3. e5 {[%clk 0:02:54]}  c5 {[%clk 0:02:59]} 4. dxc5 {[%clk 0:02:53]}  e6 {[%clk 0:02:59]} 5. a3 {[%clk 0:02:54]}  Bxc5 {[%clk 0:02:59]} 6. b4 {[%clk 0:02:54]}  Bb6 {[%clk 0:02:57]} 7. Qg4 {[%clk 0:02:51]}  Ne7 {[%clk 0:02:55]} 8. Bd3 {[%clk 0:02:48]}  Ng6 {[%clk 0:02:46]} 9. Nf3 {[%clk 0:02:43]}  Nc6 {[%clk 0:02:39]} 10. Bb2 {[%clk 0:02:43]}  Bc7 {[%clk 0:02:30]} 11. O-O {[%clk 0:02:33]}  d4 {[%clk 0:01:32]} 12. Re1 {[%clk 0:02:20]}  Qd5 {[%clk 0:00:54]} 13. Be4 {[%clk 0:02:07]}  Qd7 {[%clk 0:00:28]} 14. b5 {[%clk 0:02:00]}  Nce7 {[%clk 0:00:22]} 15. Bxd4 {[%clk 0:01:55]}  Nf5 {[%clk 0:00:16]} 16. Bxf5 {[%clk 0:01:37]}  exf5 {[%clk 0:00:15]} 17. e6 {[%clk 0:01:36]}  fxe6 {[%clk 0:00:09]} 18. Qxf5 {[%clk 0:01:36]}  Rf8 {[%clk 0:00:06]} 19. Qe4 {[%clk 0:01:35]}  Qxb5 {[%clk 0:00:06]} 20. Nc3 {[%clk 0:01:32]}  Qf5 {[%clk 0:00:06]} 21. Bxg7 {[%clk 0:01:27]}  Qxe4 {[%clk 0:00:05]} 22. Nxe4 {[%clk 0:01:28]}  Rf7 {[%clk 0:00:05]} 23. Bb2 {[%clk 0:01:23]}  Bd7 {[%clk 0:00:06]} 24. Rad1 {[%clk 0:01:22]}  Bc6 {[%clk 0:00:06]} 25. Nfg5 {[%clk 0:01:19]}  Rf5 {[%clk 0:00:05]} 26. Nf6+ {[%clk 0:01:15]}  Kf8 {[%clk 0:00:03]} 27. Nxe6+ {[%clk 0:01:15]}  Kf7 {[%clk 0:00:02]} 28. Nxc7 {[%clk 0:01:15]}  Rxf6 {[%clk 0:00:02]} 29. Bxf6 {[%clk 0:01:14]}  Rc8 {[%clk 0:00:03]} 30. Bd8 {[%clk 0:01:13]}  Nf4 {[%clk 0:00:03]} 31. f3 {[%clk 0:01:11]}  h5 {[%clk 0:00:02]} 32. Bg5 {[%clk 0:01:08]}  Ng6 {[%clk 0:00:02]} 33. Ne6 {[%clk 0:01:07]}  h4 {[%clk 0:00:02]} 34. Nd8+ {[%clk 0:01:06]}  Kg8 {[%clk 0:00:02]} 35. Nxc6 {[%clk 0:01:07]}  Rxc6 {[%clk 0:00:03]} 36. Rd7 {[%clk 0:01:07]}  Rxc2 {[%clk 0:00:02]} 37. Re8+ {[%clk 0:01:06]}  Nf8 {[%clk 0:00:03]} 1-0


[Site "https://www.chess.com"]

[Event "Titled Tuesday Blitz October 25 Late 2022"]
[White "Gedgafov, Chamal"]
[Black "Celestino, Rafael Teixeira"]
[WhiteFideId "34130621"]
[BlackFideId "2108925"]
[WhiteElo "2067"]
[BlackElo "2431"]
[Result "1-0"]
[Round "08"]
[TimeControl "180+1"]
[Date "2022.10.26"]
[WhiteClock "0:01:16"]
[BlackClock "0:00:22"]

1. c4 {[%clk 0:03:00]}  e5 {[%clk 0:02:58]} 2. g3 {[%clk 0:02:59]}  Nc6 {[%clk 0:02:59]} 3. Bg2 {[%clk 0:02:59]}  Bc5 {[%clk 0:03:00]} 4. Nc3 {[%clk 0:02:59]}  d6 {[%clk 0:02:59]} 5. e3 {[%clk 0:02:59]}  Nf6 {[%clk 0:03:00]} 6. Ne4 {[%clk 0:02:58]}  Nxe4 {[%clk 0:02:56]} 7. Bxe4 {[%clk 0:02:59]}  f5 {[%clk 0:02:55]} 8. Bd5 {[%clk 0:02:59]}  Qf6 {[%clk 0:02:53]} 9. Ne2 {[%clk 0:02:53]}  Be6 {[%clk 0:02:51]} 10. O-O {[%clk 0:02:53]}  Bxd5 {[%clk 0:02:50]} 11. cxd5 {[%clk 0:02:53]}  Ne7 {[%clk 0:02:51]} 12. d4 {[%clk 0:02:54]}  Bb6 {[%clk 0:02:50]} 13. dxe5 {[%clk 0:02:53]}  dxe5 {[%clk 0:02:51]} 14. Nc3 {[%clk 0:02:50]}  h5 {[%clk 0:02:46]} 15. h4 {[%clk 0:02:47]}  g5 {[%clk 0:02:45]} 16. hxg5 {[%clk 0:02:47]}  Qxg5 {[%clk 0:02:46]} 17. d6 {[%clk 0:02:42]}  O-O-O {[%clk 0:02:31]} 18. Nd5 {[%clk 0:02:27]}  Nxd5 {[%clk 0:02:25]} 19. Qxd5 {[%clk 0:02:28]}  f4 {[%clk 0:02:21]} 20. exf4 {[%clk 0:02:25]}  Qxg3+ {[%clk 0:02:18]} 21. Qg2 {[%clk 0:02:24]}  Qh4 {[%clk 0:02:09]} 22. Qh2 {[%clk 0:02:14]}  Qg4+ {[%clk 0:01:54]} 23. Qg2 {[%clk 0:02:14]}  Qf5 {[%clk 0:01:51]} 24. Kh2 {[%clk 0:02:09]}  Rdg8 {[%clk 0:01:31]} 25. Qh3 {[%clk 0:02:08]}  Rg4 {[%clk 0:01:32]} 26. f3 {[%clk 0:02:05]}  Qc2+ {[%clk 0:01:32]} 27. Kh1 {[%clk 0:02:03]}  Qc6 {[%clk 0:01:11]} 28. Bd2 {[%clk 0:01:54]}  Kb8 {[%clk 0:01:09]} 29. Rac1 {[%clk 0:01:49]}  Qd5 {[%clk 0:01:08]} 30. dxc7+ {[%clk 0:01:44]}  Bxc7 {[%clk 0:01:09]} 31. Rxc7 {[%clk 0:01:44]}  Kxc7 {[%clk 0:01:06]} 32. Bc3 {[%clk 0:01:45]}  Rhg8 {[%clk 0:00:54]} 33. Bxe5+ {[%clk 0:01:44]}  Kb6 {[%clk 0:00:51]} 34. Qxh5 {[%clk 0:01:33]}  R8g6 {[%clk 0:00:32]} 35. Bc7+ {[%clk 0:01:32]}  Kc6 {[%clk 0:00:30]} 36. Qxd5+ {[%clk 0:01:22]}  Kxd5 {[%clk 0:00:30]} 37. fxg4 {[%clk 0:01:23]}  Rxg4 {[%clk 0:00:30]} 38. f5 {[%clk 0:01:21]}  Kc6 {[%clk 0:00:29]} 39. f6 {[%clk 0:01:20]}  Rg8 {[%clk 0:00:22]} 40. f7 {[%clk 0:01:20]}  Rh8+ {[%clk 0:00:23]} 41. Kg2 {[%clk 0:01:18]}  Rf8 {[%clk 0:00:24]} 42. Ba5 {[%clk 0:01:17]}  Kb5 {[%clk 0:00:23]} 43. Bc3 {[%clk 0:01:17]}  Kc4 {[%clk 0:00:22]} 44. Bg7 {[%clk 0:01:16]} 1-0


[Site "https://www.chess.com"]

[Event "Titled Tuesday Blitz October 25 Late 2022"]
[White "Gireman, Ja"]
[Black "Sanchez, Robert"]
[WhiteFideId "5043794"]
[BlackFideId "2034360"]
[WhiteElo "2153"]
[BlackElo "2416"]
[Result "1-0"]
[Round "08"]
[TimeControl "180+1"]
[Date "2022.10.26"]
[WhiteClock "0:00:20"]
[BlackClock "0:00:06"]

1. d4 {[%clk 0:03:00]}  d5 {[%clk 0:02:59]} 2. Nc3 {[%clk 0:03:00]}  e6 {[%clk 0:02:59]} 3. e4 {[%clk 0:03:00]}  Nf6 {[%clk 0:02:58]} 4. Bg5 {[%clk 0:03:00]}  Be7 {[%clk 0:02:57]} 5. e5 {[%clk 0:03:00]}  Nfd7 {[%clk 0:02:58]} 6. h4 {[%clk 0:02:59]}  h6 {[%clk 0:02:58]} 7. Bxe7 {[%clk 0:02:59]}  Qxe7 {[%clk 0:02:59]} 8. Qg4 {[%clk 0:03:00]}  O-O {[%clk 0:02:59]} 9. f4 {[%clk 0:02:59]}  f5 {[%clk 0:02:56]} 10. Qg3 {[%clk 0:02:54]}  a6 {[%clk 0:02:56]} 11. O-O-O {[%clk 0:02:54]}  c5 {[%clk 0:02:57]} 12. Nf3 {[%clk 0:02:53]}  c4 {[%clk 0:02:54]} 13. h5 {[%clk 0:02:52]}  b5 {[%clk 0:02:47]} 14. Qg6 {[%clk 0:02:52]}  Nb6 {[%clk 0:02:42]} 15. Be2 {[%clk 0:02:31]}  b4 {[%clk 0:02:41]} 16. Nb1 {[%clk 0:02:31]}  Bd7 {[%clk 0:02:32]} 17. Rdg1 {[%clk 0:02:30]}  Nc6 {[%clk 0:02:26]} 18. g4 {[%clk 0:02:29]}  Be8 {[%clk 0:02:27]} 19. g5 {[%clk 0:02:21]}  Bxg6 {[%clk 0:02:25]} 20. hxg6 {[%clk 0:02:22]}  c3 {[%clk 0:02:17]} 21. gxh6 {[%clk 0:02:18]}  cxb2+ {[%clk 0:02:14]} 22. Kxb2 {[%clk 0:02:14]}  Nc4+ {[%clk 0:01:27]} 23. Bxc4 {[%clk 0:01:57]}  dxc4 {[%clk 0:01:27]} 24. hxg7 {[%clk 0:01:58]}  c3+ {[%clk 0:01:19]} 25. Kc1 {[%clk 0:01:57]}  Qxg7 {[%clk 0:01:13]} 26. Rh7 {[%clk 0:01:46]}  Qxh7 {[%clk 0:01:07]} 27. gxh7+ {[%clk 0:01:46]}  Kxh7 {[%clk 0:01:08]} 28. Ng5+ {[%clk 0:01:45]}  Kh6 {[%clk 0:01:02]} 29. Nxe6 {[%clk 0:01:45]}  Rg8 {[%clk 0:00:53]} 30. Rh1+ {[%clk 0:01:45]}  Kg6 {[%clk 0:00:52]} 31. d5 {[%clk 0:01:45]}  Na5 {[%clk 0:00:47]} 32. a3 {[%clk 0:01:40]}  Nc4 {[%clk 0:00:40]} 33. axb4 {[%clk 0:01:36]}  Rh8 {[%clk 0:00:35]} 34. Rg1+ {[%clk 0:01:35]}  Kh5 {[%clk 0:00:35]} 35. Nxc3 {[%clk 0:01:28]}  Rag8 {[%clk 0:00:35]} 36. Ng7+ {[%clk 0:01:11]}  Kh4 {[%clk 0:00:31]} 37. Nxf5+ {[%clk 0:01:03]}  Kh3 {[%clk 0:00:31]} 38. Rd1 {[%clk 0:00:45]}  Rg2 {[%clk 0:00:24]} 39. d6 {[%clk 0:00:22]}  Kg4 {[%clk 0:00:20]} 40. Nd4 {[%clk 0:00:21]}  Kxf4 {[%clk 0:00:13]} 41. d7 {[%clk 0:00:20]}  Kxe5 {[%clk 0:00:10]} 42. d8=Q {[%clk 0:00:20]}  Rxd8 {[%clk 0:00:09]} 43. Nc6+ {[%clk 0:00:20]}  Kf4 {[%clk 0:00:09]} 44. Nxd8 {[%clk 0:00:21]}  Ne3 {[%clk 0:00:09]} 45. Rd4+ {[%clk 0:00:20]}  Kf3 {[%clk 0:00:09]} 46. Rd2 {[%clk 0:00:19]}  Rg1+ {[%clk 0:00:08]} 47. Nd1 {[%clk 0:00:20]}  Nc4 {[%clk 0:00:06]} 48. Rd3+ {[%clk 0:00:20]}  Ke4 {[%clk 0:00:06]} 49. Nc6 {[%clk 0:00:20]} 1-0


[Site "https://www.chess.com"]